fUSD/lending_fUSD_20240823
["ID","MTS","AMOUNT","RATE_DAILY","PERIOD"]
[335628464,1724393438851,-1507.02,0.00010996,2]
[335628465,1724393438861,-500.0,0.00010996,2]
[335628466,1724393438870,-500.0,0.00010996,2]
[335628467,1724393438880,-580.61,0.00010996,2]
[335628468,1724393438889,-500.0,0.00010996,2]
[335628469,1724393438899,-1540.22,0.00010996,2]
[335628470,1724393438908,-502.10554902,0.00010996,2]
[335628471,1724393438918,-711.53,0.00010996,2]
[335628472,1724393438927,-500.0,0.00010996,2]
[335628473,1724393438936,-501.81075552,0.00010996,2]
[335628474,1724393438946,-500.0,0.00010996,2]
[335628475,1724393438955,-1686.82,0.00010996,2]
[335628476,1724393438964,-1058.57,0.00010996,2]
[335628477,1724393438974,-1192.65,0.00010996,2]
[335628478,1724393438983,-2342.39,0.00010996,2]
[335628479,1724393438992,-1020.14,0.00010996,2]
[335628480,1724393439001,-804.99,0.00010996,2]
[335628481,1724393439010,-1541.41,0.00010996,2]
[335628482,1724393439020,-715.27,0.00010996,2]
[335628483,1724393439029,-500.0,0.00010996,2]
[335628484,1724393439038,-500.0,0.00010996,2]
[335628485,1724393439048,-500.0,0.00010996,2]
[335628486,1724393439057,-500.0,0.00010996,2]
[335628487,1724393439067,-1182.24,0.00010996,2]
[335628488,1724393439076,-500.0,0.00010996,2]
[335628489,1724393439086,-500.0,0.00010996,2]
[335628490,1724393439096,-500.0,0.00010996,2]
[335628491,1724393439105,-500.0,0.00010996,2]
[335628492,1724393439115,-1233.36,0.00010996,2]
[335628493,1724393439124,-653.84,0.00010996,2]
[335628494,1724393439133,-511.67,0.00010996,2]
[335628495,1724393439142,-500.0,0.00010996,2]
[335628496,1724393439151,-500.0,0.00010996,2]
[335628497,1724393439162,-500.0,0.00010996,2]
[335628498,1724393439171,-500.0,0.00010996,2]
[335628499,1724393439183,-500.0,0.00010996,2]
[335628500,1724393439194,-500.0,0.00010996,2]
[335628501,1724393439204,-1585.07,0.00010996,2]
[335628502,1724393439213,-500.0,0.00010996,2]
[335628503,1724393439222,-500.0,0.00010996,2]
[335628504,1724393439231,-500.0,0.00010996,2]
[335628505,1724393439240,-500.0,0.00010996,2]
[335628506,1724393439251,-500.0,0.00010996,2]
[335628507,1724393439261,-500.0,0.00010996,2]
[335628508,1724393439270,-500.0,0.00010996,2]
[335628509,1724393439279,-817.05,0.00010996,2]
[335628510,1724393439288,-500.0,0.00010996,2]
[335628511,1724393439297,-500.0,0.00010996,2]
[335628512,1724393439307,-500.0,0.00010996,2]
[335628513,1724393439316,-500.0,0.00010996,2]
[335628514,1724393439325,-500.0,0.00010996,2]
[335628515,1724393439336,-732.95,0.00010996,2]
[335628516,1724393439345,-215.89449762,0.00010996,2]
[335628517,1724393439355,-830.25,0.00010996,2]
[335628518,1724393439364,-631.02,0.00010996,2]
[335628519,1724393439375,-284.45181641,0.00010996,2]
[335628520,1724393439384,-500.0,0.00010996,2]
[335628521,1724393439393,-500.0,0.00010996,2]
[335628522,1724393439403,-1423.82,0.00010996,2]
[335628523,1724393439412,-1727.82,0.00010996,2]
[335628524,1724393439421,-500.0,0.00010996,2]
[335628525,1724393439430,-500.0,0.00010996,2]
[335628526,1724393439439,-500.0,0.00010996,2]
[335628527,1724393439448,-500.0,0.00010996,2]
[335628528,1724393439458,-500.0,0.00010996,2]
[335628529,1724393439467,-1228.5,0.00010996,2]
[335628530,1724393439477,-2545.92,0.00010996,2]
[335628531,1724393439488,-167.11402416,0.00010996,2]
[335628532,1724393439498,-850.89,0.00010996,2]
[335628533,1724393439507,-500.0,0.00010996,2]
[335628534,1724393439517,-3177.3,0.00010996,2]
[335628535,1724393439527,-500.0,0.00010996,2]
[335628536,1724393439536,-515.44,0.00010996,2]
[335628537,1724393439546,-724.09,0.00010996,2]
[335628538,1724393439555,-500.0,0.00010996,2]
[335628539,1724393439564,-571.53,0.00010996,2]
[335628540,1724393439573,-500.0,0.00010996,2]
[335628541,1724393439583,-91.50504717,0.00010996,2]
[335628542,1724393439597,-372.94911677,0.00010996,2]
[335628543,1724393439608,-852.83940336,0.00010996,2]
[335628544,1724393439620,-188.8864327,0.00010996,2]
[335628545,1724393439629,-500.0,0.00010996,2]
[335628546,1724393439639,-500.0,0.00010996,2]
[335628547,1724393439648,-500.0,0.00010996,2]
[335628548,1724393439657,-500.0,0.00010996,2]
[335628549,1724393439667,-500.0,0.00010996,2]
[335628550,1724393439676,-500.0,0.00010996,2]
[335628551,1724393439685,-500.0,0.00010996,2]
[335628552,1724393439695,-500.0,0.00010996,2]
[335628553,1724393439704,-1550.13,0.00010996,2]
[335628554,1724393439714,-1223.78,0.00010996,2]
[335628555,1724393439723,-3174.5,0.00010996,2]
[335628556,1724393439732,-500.0,0.00010996,2]
[335628557,1724393439743,-2728.29,0.00010996,2]
[335628558,1724393439752,-500.0,0.00010996,2]
[335628559,1724393439762,-2359.47,0.00010996,2]
[335628560,1724393439771,-2714.57,0.00010996,2]
[335628561,1724393439780,-500.0,0.00010996,2]
[335628562,1724393439790,-701.15,0.00010996,2]
[335628563,1724393439799,-500.0,0.00010996,2]
[335628564,1724393439808,-500.0,0.00010996,2]
[335628565,1724393439818,-500.0,0.00010996,2]
[335628566,1724393439827,-500.0,0.00010996,2]
[335628567,1724393439837,-500.0,0.00010996,2]
[335628568,1724393439846,-189.03034647,0.00010996,2]
[335628569,1724393439855,-809.66,0.00010996,2]
[335628570,1724393439865,-500.0,0.00010996,2]
[335628571,1724393439876,-500.0,0.00010996,2]
[335628572,1724393439887,-500.0,0.00010996,2]
[335628573,1724393439898,-500.0,0.00010996,2]
[335628574,1724393439907,-500.0,0.00010996,2]
[335628575,1724393439917,-649.89,0.00010996,2]
[335628577,1724393439926,-1004.81,0.00010996,2]
[335628578,1724393439935,-151.89191814,0.00010996,2]
[335628579,1724393439947,-348.10808186,0.00010996,2]
[335628581,1724393439956,-500.0,0.00010996,2]
[335628582,1724393439965,-500.0,0.00010996,2]
[335628584,1724393439974,-591.62,0.00010996,2]
[335628586,1724393439983,-500.0,0.00010996,2]
[335628588,1724393439992,-500.0,0.00010996,2]
[335628589,1724393440002,-608.24380712,0.00010996,2]
[335628590,1724393440013,-2278.11619288,0.00010996,2]
[335628591,1724393440024,-500.0,0.00010996,2]
[335628592,1724393440034,-500.0,0.00010996,2]
[335628593,1724393440045,-1294.66,0.00010996,2]
[335628594,1724393440054,-500.0,0.00010996,2]
[335628595,1724393440065,-500.0,0.00010996,2]
[335628596,1724393440075,-500.0,0.00010996,2]
[335628598,1724393440084,-681.56,0.00010996,2]
[335628600,1724393440093,-418.51079206,0.00010996,2]
[335628602,1724393440105,-500.0,0.00010997,2]
[335628604,1724393440115,-500.0,0.00010997,2]
[335628605,1724393440125,-500.0,0.00010997,2]
[335628606,1724393440134,-500.0,0.00010997,2]
[335628607,1724393440144,-500.0,0.00010997,2]
[335628608,1724393440154,-500.0,0.00010997,2]
[335628609,1724393440163,-500.0,0.00010997,2]
[335628610,1724393440172,-553.0899954,0.00010997,2]
[335628612,1724393440181,-500.0,0.00010997,2]
[335628614,1724393440190,-500.0,0.00010997,2]
[335628616,1724393440199,-500.0,0.00010997,2]
[335628619,1724393440208,-510.65404392,0.00010997,2]
[335628620,1724393440217,-500.0,0.00010997,2]
[335628623,1724393440226,-395.6234392,0.00010997,2]
[335628626,1724393440236,-513.44,0.00010997,2]
[335628629,1724393440245,-513.44,0.00010997,2]
[335628632,1724393440255,-513.44,0.00010997,2]
[335628634,1724393440265,-500.0,0.00010997,2]
[335628637,1724393440274,-500.0,0.00010997,2]
[335628640,1724393440283,-500.0,0.00010997,2]
[335628641,1724393440292,-500.0,0.00010997,2]
[335628642,1724393440301,-500.0,0.00010997,2]
[335628643,1724393440310,-500.0,0.00010997,2]
[335628644,1724393440319,-646.12,0.00010997,2]
[335628645,1724393440329,-646.12,0.00010997,2]
[335628646,1724393440338,-646.12,0.00010997,2]
[335628647,1724393440350,-867.93,0.00010997,2]
[335628648,1724393440359,-867.93,0.00010997,2]
[335628649,1724393440368,-867.93,0.00010997,2]
[335628650,1724393440377,-806.95,0.00010997,2]
[335628651,1724393440386,-806.95,0.00010997,2]
[335628652,1724393440395,-806.95,0.00010997,2]
[335628653,1724393440404,-500.0,0.00010997,2]
[335628654,1724393440413,-500.0,0.00010997,2]
[335628655,1724393440422,-500.0,0.00010997,2]
[335628656,1724393440431,-565.06,0.00010997,2]
[335628657,1724393440440,-565.06,0.00010997,2]
[335628658,1724393440449,-565.06,0.00010997,2]
[335628659,1724393440460,-517.04,0.00010997,2]
[335628660,1724393440470,-517.04,0.00010997,2]
[335628661,1724393440479,-517.04,0.00010997,2]
[335628662,1724393440491,-500.0,0.00010997,2]
[335628663,1724393440500,-500.0,0.00010997,2]
[335628664,1724393440509,-501.44779403,0.00010997,2]
[335628665,1724393440518,-305.3740716,0.00010997,2]
[335628666,1724393440528,-500.0,0.00010997,2]
[335628667,1724393440537,-580.1,0.00010997,2]
[335628668,1724393440546,-500.0,0.00010997,2]
[335628669,1724393440555,-580.1,0.00010997,2]
[335628670,1724393440565,-500.0,0.00010997,2]
[335628671,1724393440574,-580.1,0.00010997,2]
[335628672,1724393440583,-1411.96,0.00010997,2]
[335628673,1724393440593,-1411.96,0.00010997,2]
[335628674,1724393440602,-1411.96,0.00010997,2]
[335628675,1724393440612,-500.0,0.00010997,2]
[335628676,1724393440621,-500.0,0.00010997,2]
[335628677,1724393440630,-500.0,0.00010997,2]
[335628678,1724393440639,-500.0,0.00010997,2]
[335628679,1724393440649,-500.0,0.00010997,2]
[335628680,1724393440658,-500.0,0.00010997,2]
[335628681,1724393440667,-666.92,0.00010997,2]
[335628682,1724393440676,-666.92,0.00010997,2]
[335628683,1724393440686,-666.92,0.00010997,2]
[335628684,1724393440695,-500.0,0.00010997,2]
[335628685,1724393440705,-500.0,0.00010997,2]
[335628686,1724393440728,-500.0,0.00010997,2]
[335628687,1724393440737,-1175.3,0.00010997,2]
[335628688,1724393440747,-1175.3,0.00010997,2]
[335628689,1724393440756,-1175.3,0.00010997,2]
[335628690,1724393440765,-500.0,0.00010997,2]
[335628691,1724393440773,-500.0,0.00010997,2]
[335628692,1724393440782,-500.0,0.00010997,2]
[335628693,1724393440792,-500.0,0.00010997,2]
[335628694,1724393440801,-500.0,0.00010997,2]
[335628695,1724393440811,-500.0,0.00010997,2]
[335628697,1724393440820,-500.0,0.00010997,2]
[335628698,1724393440829,-500.0,0.00010997,2]
[335628699,1724393440838,-500.0,0.00010997,2]
[335628700,1724393440847,-500.0,0.00010997,2]
[335628701,1724393440856,-500.0,0.00010997,2]
[335628702,1724393440865,-934.98676436,0.00010997,2]
[335628703,1724393440879,-358.005,0.00010997,2]
[335628704,1724393440889,-1720.75393469,0.00010997,2]
[335628705,1724393440900,-607.39430095,0.00010997,2]
[335628706,1724393440909,-2746.5502043,0.00010997,2]
[335628707,1724393440919,-667.24633407,0.00010997,2]
[335628708,1724393440930,-207.34346163,0.00010997,2]
[335628709,1724393440939,-3621.14,0.00010997,2]
[335628710,1724393440948,-3621.14,0.00010997,2]
[335628711,1724393440957,-3621.14,0.00010997,2]
[335628712,1724393440967,-676.18,0.00010997,2]
[335628713,1724393440977,-676.18,0.00010997,2]
[335628714,1724393440986,-676.18,0.00010997,2]
[335628715,1724393440996,-676.18,0.00010997,2]
[335628716,1724393441011,-676.18,0.00010997,2]
[335628717,1724393441021,-500.0,0.00010997,2]
[335628718,1724393441032,-500.0,0.00010997,2]
[335628719,1724393441042,-500.0,0.00010997,2]
[335628720,1724393441053,-3559.68,0.00010997,2]
[335628721,1724393441063,-500.0,0.00010997,2]
[335628722,1724393441073,-500.0,0.00010997,2]
[335628723,1724393441082,-500.0,0.00010997,2]
[335628724,1724393441092,-3769.59,0.00010997,2]
[335628725,1724393441101,-2235.34,0.00010997,2]
[335628726,1724393441110,-500.0,0.00010997,2]
[335628727,1724393441119,-500.0,0.00010997,2]
[335628728,1724393441129,-500.0,0.00010997,2]
[335628729,1724393441138,-397.47648101,0.00010997,2]
[335628730,1724393441148,-667.62921556,0.00010997,2]
[335628731,1724393441161,-655.95209824,0.00010997,2]
[335628732,1724393441175,-622.2986862,0.00010997,2]
[335628733,1724393441185,-500.0,0.00010997,2]
[335628734,1724393441196,-2962.01008487,0.00010997,2]
[335628735,1724393441213,-2194.33991513,0.00010997,2]
[335628736,1724393441222,-500.0,0.00010997,2]
[335628737,1724393441231,-1204.03353449,0.00010997,2]
[335628738,1724393441242,-4669.04646551,0.00010997,2]
[335628739,1724393441251,-500.0,0.00010997,2]
[335628740,1724393441260,-1317.91382983,0.00010997,2]
[335628741,1724393441272,-473.3383626,0.00010997,2]
[335628742,1724393441283,-2146.17360397,0.00010997,2]
[335628743,1724393441294,-1068.38011264,0.00010997,2]
[335628744,1724393441306,-606.88409096,0.00010997,2]
[335628745,1724393441316,-9.19256644,0.00010997,2]
[335628746,1724393441327,-490.80743356,0.00010997,2]
[335628747,1724393441336,-109.69256644,0.00010997,2]
[335628748,1724393441387,-332.7353083,0.000109,2]
[335628749,1724393441396,-2007.72743356,0.00010997,2]
[335628750,1724393441405,-500.0,0.00010997,2]
[335628751,1724393441416,-500.0,0.00010997,2]
[335628752,1724393441426,-500.0,0.00010997,2]
[335628753,1724393441435,-500.0,0.00010997,2]
[335628754,1724393441444,-805.56395756,0.00010997,2]
[335628755,1724393441456,-1355.02815999,0.00010997,2]
[335628756,1724393441467,-777.96788245,0.00010997,2]
[335628757,1724393441476,-500.0,0.00010997,2]
[335628758,1724393441487,-1214.28,0.00010997,2]
[335628759,1724393441497,-560.01,0.00010997,2]
[335628760,1724393441506,-588.41,0.00010997,2]
[335628761,1724393441515,-500.0,0.00010997,2]
[335628762,1724393441524,-500.0,0.00010997,2]
[335628763,1724393441534,-500.0,0.00010997,2]
[335628764,1724393441543,-500.0,0.00010997,2]
[335628765,1724393441553,-500.0,0.00010997,2]
[335628766,1724393441562,-500.0,0.00010997,2]
[335628767,1724393441571,-500.0,0.00010997,2]
[335628768,1724393441580,-710.11,0.00010997,2]
[335628769,1724393441589,-225.94211515,0.00010997,2]
[335628770,1724393441602,-274.05788485,0.00010997,2]
[335628771,1724393441611,-500.0,0.00010997,2]
[335628772,1724393441620,-449.26208106,0.00010997,2]
[335628773,1724393441631,-1057.75791894,0.00010997,2]
[335628774,1724393441641,-1507.02,0.00010997,2]
[335628775,1724393441651,-1507.02,0.00010997,2]
[335628776,1724393441660,-500.0,0.00010997,2]
[335628777,1724393441670,-1507.02,0.00010997,2]
[335628778,1724393441872,-1507.02,0.00010997,2]
[335628779,1724393441883,-500.0,0.00010997,2]
[335628780,1724393441893,-500.0,0.00010997,2]
[335628781,1724393441903,-500.0,0.00010997,2]
[335628782,1724393441912,-500.0,0.00010997,2]
[335628783,1724393441923,-580.61,0.00010997,2]
[335628784,1724393441934,-500.0,0.00010997,2]
[335628785,1724393441945,-997.26,0.00010997,2]
[335628786,1724393441954,-997.26,0.00010997,2]
[335628787,1724393441964,-997.26,0.00010997,2]
[335628788,1724393441973,-1540.22,0.00010997,2]
[335628789,1724393441983,-1540.22,0.00010997,2]
[335628790,1724393441993,-1540.22,0.00010997,2]
[335628791,1724393442002,-648.28212456,0.00010997,2]
[335628792,1724393442014,-891.93787544,0.00010997,2]
[335628793,1724393442023,-1540.22,0.00010997,2]
[335628794,1724393442033,-500.0,0.00010997,2]
[335628795,1724393442042,-500.0,0.00010997,2]
[335628796,1724393442052,-711.53,0.00010997,2]
[335628797,1724393442062,-500.0,0.00010997,2]
[335628798,1724393442071,-500.0,0.00010997,2]
[335628799,1724393442082,-1686.82,0.00010997,2]
[335628800,1724393442092,-1686.82,0.00010997,2]
[335628801,1724393442102,-206.92912909,0.00010997,2]
[335628802,1724393442120,-1479.89087091,0.00010997,2]
[335628803,1724393442131,-1686.82,0.00010997,2]
[335628804,1724393442143,-1686.82,0.00010997,2]
[335628805,1724393442153,-1058.57,0.00010997,2]
[335628806,1724393442163,-598.35,0.00010997,2]
[335628807,1724393442172,-598.35,0.00010997,2]
[335628808,1724393442182,-598.35,0.00010997,2]
[335628809,1724393442192,-500.0,0.00010997,2]
[335628810,1724393442202,-500.0,0.00010997,2]
[335628811,1724393442213,-500.0,0.00010997,2]
[335628812,1724393442222,-1192.65,0.00010997,2]
[335628813,1724393442232,-2342.39,0.00010997,2]
[335628814,1724393442243,-2342.39,0.00010997,2]
[335628815,1724393442255,-2342.39,0.00010997,2]
[335628816,1724393442265,-2342.39,0.00010997,2]
[335628817,1724393442274,-2342.39,0.00010997,2]
[335628818,1724393442284,-500.0,0.00010997,2]
[335628819,1724393442293,-500.0,0.00010997,2]
[335628820,1724393442303,-500.0,0.00010997,2]
[335628821,1724393442312,-500.0,0.00010997,2]
[335628822,1724393442321,-500.0,0.00010997,2]
[335628823,1724393442331,-500.0,0.00010997,2]
[335628824,1724393442340,-500.0,0.00010997,2]
[335628825,1724393442350,-500.0,0.00010997,2]
[335628826,1724393442359,-500.0,0.00010997,2]
[335628827,1724393442369,-500.0,0.00010997,2]
[335628828,1724393442378,-1020.14,0.00010997,2]
[335628829,1724393442387,-500.0,0.00010997,2]
[335628830,1724393442397,-500.0,0.00010997,2]
[335628831,1724393442406,-804.99,0.00010997,2]
[335628832,1724393442415,-804.99,0.00010997,2]
[335628833,1724393442424,-749.91,0.00010997,2]
[335628834,1724393442433,-804.99,0.00010997,2]
[335628835,1724393442442,-749.91,0.00010997,2]
[335628836,1724393442452,-804.99,0.00010997,2]
[335628837,1724393442462,-749.91,0.00010997,2]
[335628838,1724393442471,-1541.41,0.00010997,2]
[335628839,1724393442481,-804.99,0.00010997,2]
[335628840,1724393442495,-1541.41,0.00010997,2]
[335628841,1724393442504,-1541.41,0.00010997,2]
[335628842,1724393442513,-1541.41,0.00010997,2]
[335628843,1724393442522,-1541.41,0.00010997,2]
[335628844,1724393442533,-715.27,0.00010997,2]
[335628845,1724393442542,-500.0,0.00010997,2]
[335628846,1724393442552,-500.0,0.00010997,2]
[335628847,1724393442561,-500.0,0.00010997,2]
[335628848,1724393442571,-500.0,0.00010997,2]
[335628849,1724393442581,-500.0,0.00010997,2]
[335628850,1724393442591,-500.0,0.00010997,2]
[335628851,1724393442600,-500.0,0.00010997,2]
[335628852,1724393442609,-500.0,0.00010997,2]
[335628853,1724393442619,-500.0,0.00010997,2]
[335628854,1724393442629,-500.0,0.00010997,2]
[335628855,1724393442638,-500.0,0.00010997,2]
[335628856,1724393442648,-500.0,0.00010997,2]
[335628857,1724393442657,-569.5715152,0.00010997,2]
[335628858,1724393442667,-500.0,0.00010997,2]
[335628859,1724393442676,-500.0,0.00010997,2]
[335628860,1724393442685,-500.0,0.00010997,2]
[335628861,1724393442695,-543.96,0.00010997,2]
[335628862,1724393442704,-543.96,0.00010997,2]
[335628863,1724393442714,-543.96,0.00010997,2]
[335628864,1724393442723,-500.0,0.00010997,2]
[335628865,1724393442732,-500.0,0.00010997,2]
[335628866,1724393442742,-500.0,0.00010997,2]
[335628867,1724393442751,-500.0,0.00010997,2]
[335628868,1724393442760,-1182.24,0.00010997,2]
[335628869,1724393442769,-1182.24,0.00010997,2]
[335628870,1724393442779,-1182.24,0.00010997,2]
[335628871,1724393442788,-1182.24,0.00010997,2]
[335628872,1724393442797,-500.0,0.00010997,2]
[335628873,1724393442807,-1182.24,0.00010997,2]
[335628874,1724393442817,-500.0,0.00010997,2]
[335628875,1724393442826,-500.0,0.00010997,2]
[335628876,1724393442836,-500.0,0.00010997,2]
[335628877,1724393442845,-500.0,0.00010997,2]
[335628878,1724393442855,-500.0,0.00010997,2]
[335628879,1724393442864,-610.87475567,0.00010997,2]
[335628880,1724393442874,-500.0,0.00010997,2]
[335628881,1724393442884,-500.0,0.00010997,2]
[335628882,1724393442894,-558.01,0.00010997,2]
[335628883,1724393442903,-558.01,0.00010997,2]
[335628884,1724393442913,-558.01,0.00010997,2]
[335628885,1724393442922,-500.0,0.00010997,2]
[335628886,1724393442931,-302.17487237,0.00010997,2]
[335628887,1724393442940,-626.42,0.00010997,2]
[335628888,1724393442950,-626.42,0.00010997,2]
[335628889,1724393442960,-626.42,0.00010997,2]
[335628890,1724393442970,-1233.36,0.00010997,2]
[335628891,1724393442979,-1233.36,0.00010997,2]
[335628892,1724393442988,-1233.36,0.00010997,2]
[335628893,1724393442998,-1233.36,0.00010997,2]
[335628894,1724393443007,-1233.36,0.00010997,2]
[335628895,1724393443016,-653.84,0.00010997,2]
[335628896,1724393443026,-500.0,0.00010997,2]
[335628897,1724393443035,-500.0,0.00010997,2]
[335628898,1724393443044,-500.0,0.00010997,2]
[335628900,1724393443054,-500.0,0.00010997,2]
[335628902,1724393443063,-500.0,0.00010997,2]
[335628904,1724393443073,-500.0,0.00010997,2]
[335628907,1724393443082,-500.0,0.00010997,2]
[335628909,1724393443092,-500.0,0.00010997,2]
[335628913,1724393443101,-500.0,0.00010997,2]
[335628917,1724393443111,-511.67,0.00010997,2]
[335628921,1724393443121,-511.67,0.00010997,2]
[335628923,1724393443130,-511.67,0.00010997,2]
[335628924,1724393443139,-511.67,0.00010997,2]
[335628925,1724393443149,-511.67,0.00010997,2]
[335628926,1724393443158,-500.0,0.00010997,2]
[335628927,1724393443168,-500.0,0.00010997,2]
[335628928,1724393443177,-500.0,0.00010997,2]
[335628929,1724393443187,-500.0,0.00010997,2]
[335628930,1724393443196,-500.0,0.00010997,2]
[335628931,1724393443206,-500.0,0.00010997,2]
[335628932,1724393443216,-500.0,0.00010997,2]
[335628933,1724393443226,-500.0,0.00010997,2]
[335628934,1724393443235,-500.0,0.00010997,2]
[335628935,1724393443245,-500.0,0.00010997,2]
[335628936,1724393443255,-500.0,0.00010997,2]
[335628937,1724393443264,-500.0,0.00010997,2]
[335628938,1724393443274,-500.0,0.00010997,2]
[335628939,1724393443283,-500.0,0.00010997,2]
[335628940,1724393443292,-500.0,0.00010997,2]
[335628941,1724393443303,-500.0,0.00010997,2]
[335628942,1724393443312,-1585.07,0.00010997,2]
[335628943,1724393443322,-500.0,0.00010997,2]
[335628944,1724393443333,-507.36841088,0.00010997,2]
[335628946,1724393443343,-1585.07,0.00010997,2]
[335628948,1724393443353,-500.0,0.00010997,2]
[335628949,1724393443362,-1585.07,0.00010997,2]
[335628950,1724393443372,-1585.07,0.00010997,2]
[335628951,1724393443381,-500.0,0.00010997,2]
[335628952,1724393443393,-1585.07,0.00010997,2]
[335628953,1724393443402,-500.0,0.00010997,2]
[335628954,1724393443412,-500.0,0.00010997,2]
[335628955,1724393443421,-500.0,0.00010997,2]
[335628956,1724393443430,-500.0,0.00010997,2]
[335628957,1724393443440,-500.0,0.00010997,2]
[335628958,1724393443449,-500.0,0.00010997,2]
[335628959,1724393443459,-500.0,0.00010997,2]
[335628960,1724393443468,-500.0,0.00010997,2]
[335628961,1724393443477,-500.0,0.00010997,2]
[335628962,1724393443489,-500.0,0.00010997,2]
[335628963,1724393443498,-500.0,0.00010997,2]
[335628964,1724393443508,-500.0,0.00010997,2]
[335628965,1724393443518,-500.0,0.00010997,2]
[335628966,1724393443527,-500.0,0.00010997,2]
[335628967,1724393443537,-500.0,0.00010997,2]
[335628968,1724393443547,-500.0,0.00010997,2]
[335628969,1724393443556,-500.0,0.00010997,2]
[335628970,1724393443566,-500.0,0.00010997,2]
[335628971,1724393443575,-500.0,0.00010997,2]
[335628972,1724393443585,-500.0,0.00010997,2]
[335628973,1724393443595,-500.0,0.00010997,2]
[335628974,1724393443604,-500.0,0.00010997,2]
[335628975,1724393443614,-500.0,0.00010997,2]
[335628976,1724393443623,-817.05,0.00010997,2]
[335628978,1724393443632,-603.68,0.00010997,2]
[335628980,1724393443641,-603.68,0.00010997,2]
[335628982,1724393443650,-603.68,0.00010997,2]
[335628984,1724393443660,-500.0,0.00010997,2]
[335628986,1724393443670,-500.0,0.00010997,2]
[335628988,1724393443679,-500.0,0.00010997,2]
[335628990,1724393443688,-500.0,0.00010997,2]
[335628992,1724393443697,-500.0,0.00010997,2]
[335628994,1724393443706,-500.0,0.00010997,2]
[335628996,1724393443716,-500.0,0.00010997,2]
[335628999,1724393443726,-500.0,0.00010997,2]
[335629002,1724393443735,-500.0,0.00010997,2]
[335629005,1724393443745,-500.0,0.00010997,2]
[335629007,1724393443754,-500.0,0.00010997,2]
[335629009,1724393443763,-732.95,0.00010997,2]
[335629010,1724393443772,-500.0,0.00010997,2]
[335629011,1724393443781,-500.0,0.00010997,2]
[335629012,1724393443790,-500.0,0.00010997,2]
[335629013,1724393443800,-500.0,0.00010997,2]
[335629014,1724393443810,-500.0,0.00010997,2]
[335629015,1724393443819,-500.0,0.00010997,2]
[335629016,1724393443829,-830.25,0.00010997,2]
[335629017,1724393443838,-631.02,0.00010997,2]
[335629018,1724393443848,-500.0,0.00010997,2]
[335629019,1724393443857,-500.0,0.00010997,2]
[335629020,1724393443866,-500.0,0.00010997,2]
[335629021,1724393443875,-500.0,0.00010997,2]
[335629022,1724393443885,-500.0,0.00010997,2]
[335629023,1724393443895,-1423.82,0.00010997,2]
[335629024,1724393443904,-1727.82,0.00010997,2]
[335629025,1724393443914,-500.0,0.00010997,2]
[335629026,1724393443923,-500.0,0.00010997,2]
[335629027,1724393443933,-500.0,0.00010997,2]